bitfinex-derivatives/quotes_ETHF0:USTF0_20250923
["timestamp","ask_amount","ask_price","bid_price","bid_amount"]
[1758590925533,0.5271,4199.9,4199.8,3.9268]
[1758590925837,0.5271,4199.9,4199.8,4.1688]
[1758590926140,0.5271,4199.9,4199.8,44.9688]
[1758590926341,0.5271,4199.9,4199.8,4.1688]
[1758590926638,0.5271,4199.9,4199.8,3.9268]
[1758590926833,0.5271,4199.9,4199.8,44.9688]
[1758590927640,0.5271,4199.9,4199.8,41.2125]
[1758590927846,0.5271,4199.9,4199.8,41.4545]
[1758590928038,0.5271,4199.9,4199.8,41.519]
[1758590928238,1.15747939,4199.9,4199.8,41.2125]
[1758590928535,1.36587939,4199.9,4199.8,0.6545]
[1758590929541,1.36587939,4199.9,4199.8,0.4125]
[1758590929739,1.36587939,4199.9,4199.8,0.4491]
[1758590930536,1.28684,4199.5,4199.4,0.2071]
[1758590930732,0.63666,4199.3,4199.2,3.4149]
[1758590930938,2.02086403,4199.3,4199.2,3.6569]
[1758590931239,1.59260403,4199.3,4199.2,4.1688]
[1758590932340,0.1231,4199.0,4198.3,0.3065]
[1758590932535,3.2078,4198.7,4198.6,0.719]
[1758590932839,4.59200403,4198.7,4198.6,0.719]
[1758590933041,1.59260403,4198.7,4198.6,0.961]
[1758590933238,4.80040403,4198.7,4198.6,0.6545]
[1758590933637,4.80040403,4198.7,4198.6,0.4491]
[1758590933843,0.5271,4198.0,4197.9,0.719]
[1758590934044,1.38420403,4198.0,4197.9,0.961]
[1758590934338,1.50730403,4198.0,4197.9,0.719]
[1758590934640,1.50730403,4198.0,4197.9,0.961]
[1758590935334,0.85710403,4198.0,4197.9,0.961]
[1758590935738,1.38420403,4198.0,4197.9,0.961]
[1758590936139,1.71570403,4198.0,4197.9,0.4125]
[1758590936440,1.71570403,4198.0,4197.9,0.4491]
[1758590937546,1.71570403,4198.0,4197.9,0.2071]
[1758590937736,1.71570403,4198.0,4197.9,0.4491]
[1758590939238,1.71570403,4198.0,4197.9,0.242]
[1758590939945,0.74713,4197.6,4197.5,45.63783693]
[1758590940243,0.97385464,4197.6,4197.5,45.87983693]
[1758590940646,1.18225464,4197.6,4197.5,5.50893693]
[1758590941149,0.75382464,4197.6,4197.5,5.50893693]
[1758590944744,0.22672464,4197.6,4197.5,5.50893693]
[1758590944951,0.22672464,4197.6,4197.5,5.59513693]
[1758590946047,3.5156,4198.7,4198.6,0.5344]
[1758590946349,3.2078,4198.7,4198.6,2.32023693]
[1758590946843,3.9266,4198.7,4198.6,2.32023693]
[1758590947152,3.9266,4198.7,4198.6,2.00783693]
[1758590948637,3.9266,4198.7,4198.6,0.2203]
[1758590948838,0.5121,4198.3,4198.2,1.18306]
[1758590949041,0.3078,4199.2,4198.9,0.3124]
[1758590949242,3.2078,4199.3,4199.2,1.18297]
[1758590949449,3.2078,4199.3,4199.2,1.42497]
[1758590951049,3.7199,4199.3,4199.2,0.9967]
[1758590951255,3.9266,4199.3,4199.2,0.4423]
[1758590951549,3.9266,4199.3,4199.2,0.6843]
[1758590952151,0.3078,4199.5,4199.4,0.7547]
[1758590952346,0.3078,4199.5,4199.4,0.9967]
[1758590952547,0.5121,4199.5,4199.4,0.9967]
[1758590954151,0.5121,4199.5,4199.4,2.32023693]
[1758590954351,0.8457,4199.5,4199.4,0.9967]
[1758590954851,0.8457,4199.5,4199.4,0.6843]
[1758590956149,0.8457,4199.5,4199.4,0.4623]
[1758590956358,0.5379,4199.5,4199.4,0.242]
[1758590956547,0.8457,4199.5,4199.4,0.242]
[1758590957653,0.3065,4199.4,4199.1,0.42828]
[1758590957858,0.7341,4199.2,4199.1,0.64768]
[1758590958155,0.95291128,4199.2,4199.1,0.88968]
[1758590958654,0.8553,4199.0,4198.7,1.32353693]
[1758590958859,0.21881128,4198.9,4198.8,1.4126]
[1758590959354,0.7341,4199.1,4199.0,1.17058]
[1758590959559,0.95298479,4199.1,4199.0,0.86018]
[1758590959758,0.95298479,4199.1,4199.0,0.42828]
[1758590960055,0.95298479,4199.1,4198.8,0.6703]
[1758590960256,0.7341,4198.9,4198.8,0.88971]
[1758590960459,0.95298479,4198.9,4198.8,0.88971]
[1758590961953,0.3065,4198.8,4198.6,0.42832]
[1758590962152,0.95298479,4198.7,4198.6,0.42832]
[1758590962354,0.95298479,4198.7,4198.6,0.88972]
[1758590963562,0.95298479,4198.7,4198.6,1.41262]
[1758590967567,0.95298479,4198.7,4198.6,1.10222]
[1758590968764,0.95298479,4198.7,4198.6,2.03265665]
[1758590969663,0.95298479,4198.7,4198.6,1.60433665]
[1758590969864,0.95298479,4198.7,4198.6,1.36233665]
[1758590970064,0.95298479,4198.7,4198.6,1.60433665]
[1758590974773,0.7393,4198.6,4198.5,0.42833]
[1758590975067,0.73738479,4198.6,4198.5,1.42233]
[1758590975371,0.21888479,4198.6,4198.5,1.54283]
[1758590976165,0.73738479,4198.6,4198.5,1.42233]
[1758590976367,0.21888479,4198.6,4198.5,1.42233]
[1758590976671,0.21888479,4198.6,4198.5,1.54283]
[1758590977373,0.73738479,4198.6,4198.5,1.42233]
[1758590977669,0.52978479,4198.6,4198.5,1.42233]
[1758590977971,0.52978479,4198.6,4198.5,42.22233]
[1758590986377,0.21888479,4198.6,4198.5,42.10083]
[1758590986577,0.21888479,4198.6,4198.5,42.34183]
[1758590987972,0.52978479,4198.6,4198.5,42.34183]
[1758590988172,0.52978479,4198.6,4198.5,42.22133]
[1758590988372,0.52978479,4198.6,4198.5,43.36426665]
[1758590988979,0.21888479,4198.6,4198.5,43.48476665]
[1758590989276,0.42821,4199.8,4199.7,0.4343]
[1758590989468,1.81181329,4199.8,4199.7,2.13593665]
[1758590990071,1.38360329,4199.8,4199.7,2.13593665]
[1758590990272,1.38360329,4199.8,4199.7,0.6753]
[1758590990476,1.38360329,4199.8,4199.7,0.4575]
[1758590994176,1.38360329,4199.8,4199.7,0.241]
[1758590994676,2.52653994,4199.8,4199.7,0.241]
[1758590994870,0.7393,4199.2,4199.1,0.64477]
[1758590995083,1.38360329,4199.2,4199.1,1.10357]
[1758590995682,1.38360329,4199.2,4199.1,0.241]
[1758590996081,1.38360329,4199.2,4199.1,0.4575]
[1758590996380,1.38360329,4199.2,4199.1,0.241]
[1758590997385,1.38360329,4199.2,4199.1,0.4575]
[1758590997577,0.2076,4199.0,4198.4,0.3177]
[1758590997782,0.7393,4198.9,4198.8,0.6448]
[1758590999182,0.7393,4198.9,4198.8,0.8626]
[1758590999379,0.7393,4198.9,4198.8,1.1803]
[1758590999983,0.7393,4198.9,4198.8,0.752]
[1758591001182,0.1234,4198.5,4198.4,0.2224]
[1758591001376,1.10153311,4198.5,4198.4,0.4634]
[1758591001578,1.10153311,4198.5,4198.4,0.9735]
[1758591002588,1.10153311,4198.5,4198.4,0.7325]
[1758591002802,1.10153311,4198.5,4198.4,0.6685]
[1758591003790,0.54663311,4198.5,4198.4,0.9735]
[1758591003988,0.23953311,4198.5,4198.4,0.9735]
[1758591004589,0.54663311,4198.5,4198.4,0.9735]
[1758591004783,0.76983311,4198.5,4198.4,0.9735]
[1758591005792,1.10153311,4198.5,4198.4,0.241]
[1758591007189,1.10153311,4198.5,4198.4,0.4634]
[1758591008790,0.3071,4198.4,4198.0,4.35073665]
[1758591008991,0.7386,4198.1,4198.0,5.00152665]
[1758591009191,0.97813311,4198.1,4198.0,5.24252665]
[1758591009496,0.23953311,4198.1,4198.0,5.75262665]
[1758591009790,0.23953311,4198.1,4198.0,5.51162665]
[1758591009988,0.23953311,4198.1,4198.0,5.75262665]
[1758591010592,0.54663311,4198.1,4198.0,5.75262665]
[1758591011392,0.76983311,4198.1,4198.0,5.75262665]
[1758591012189,0.97813311,4198.1,4198.0,4.09959]
[1758591012385,0.76983311,4198.1,4198.0,5.75262665]
[1758591013093,0.54663311,4198.1,4198.0,5.75262665]
[1758591014794,0.23953311,4198.1,4198.0,5.87392665]
[1758591014993,0.3071,4198.8,4198.7,0.42832]
[1758591015195,0.5303,4199.4,4199.3,1.16076]
[1758591015494,1.18495693,4199.4,4199.3,1.40176]
[1758591015694,1.18495693,4199.4,4199.3,2.54469665]
[1758591015895,1.39325693,4199.4,4199.3,2.54469665]
[1758591016296,0.65465693,4199.4,4199.3,2.54469665]
[1758591016497,0.5434,4199.7,4199.6,1.16203]
[1758591016797,1.19793512,4199.7,4199.6,2.54596665]
[1758591017293,0.98553512,4199.7,4199.6,2.54596665]
[1758591017496,4.0794,4200.0,4199.9,0.84909]
[1758591017799,4.73380523,4200.0,4199.9,1.99202665]
[1758591018394,4.73380523,4200.0,4199.9,0.2159]
[1758591018896,0.5457,4199.5,4199.4,0.42825]
[1758591019092,0.8767,4199.5,4199.4,0.42825]
[1758591019289,0.8767,4199.5,4199.4,0.66925]
[1758591019599,0.5434,4199.5,4199.4,2.54598665]
[1758591020497,0.7447,4199.5,4199.4,2.30498665]
[1758591020692,0.8767,4199.5,4199.4,1.40305]
[1758591021095,0.5434,4199.9,4199.8,1.162]
[1758591021298,1.39874819,4199.9,4199.8,0.8491]
[1758591022605,1.39874819,4199.9,4199.8,1.162]
[1758591023501,1.39874819,4199.9,4199.8,0.6441]
[1758591023699,1.39874819,4199.9,4199.8,0.4282]
[1758591024302,2.54168484,4199.9,4199.8,0.4282]
[1758591024805,2.54168484,4199.9,4199.7,0.241]
[1758591025008,1.39874819,4199.8,4199.7,0.241]
[1758591025502,0.132,4199.5,4199.4,0.42824]
[1758591025807,0.8767,4199.5,4199.4,0.66924]
[1758591027101,1.11904951,4199.5,4199.4,0.66924]
[1758591028310,4.98378456,4199.5,4199.4,0.66925]
[1758591028508,4.98378456,4199.5,4199.4,0.241]
[1758591028709,0.8767,4199.0,4198.9,1.35883665]
[1758591028909,1.11904951,4199.0,4198.9,1.59983665]
[1758591029111,1.11904951,4199.0,4198.9,2.02813665]
[1758591030703,1.11904951,4199.0,4198.9,0.8852]
[1758591032009,1.11904951,4199.0,4198.9,0.6442]
[1758591032311,4.32684951,4199.0,4198.9,0.241]
[1758591032708,4.98393567,4199.0,4198.9,0.241]
[1758591033111,4.98393567,4199.0,4198.9,0.4513]
[1758591033312,4.32684951,4199.0,4198.9,0.4513]
[1758591033610,4.98393196,4199.0,4198.9,0.4513]
[1758591034612,1.11904951,4199.0,4198.9,0.4513]
[1758591035113,1.7761571,4199.0,4198.9,0.4513]
[1758591035314,1.77640858,4199.0,4198.9,0.4513]
[1758591038217,1.77647428,4199.0,4198.9,0.4513]
[1758591039318,1.77647428,4199.0,4198.9,0.241]
[1758591041114,4.98427428,4199.0,4198.9,0.241]
[1758591041318,4.98427428,4199.0,4197.8,41.87101]
[1758591041319,0.5529,4198.5,4198.1,1.32254395]
[1758591041520,0.7583,4198.3,4198.2,0.42837]
[1758591041719,0.7583,4198.3,4198.2,0.66937]
[1758591041720,1.00090099,4198.3,4198.2,0.66937]
[1758591042524,0.7583,4197.6,4197.5,0.84244]
[1758591042819,0.24260099,4197.6,4197.5,1.47244]
[1758591043021,0.24260099,4197.6,4197.5,42.27244]
[1758591043714,0.24260099,4197.6,4197.5,46.27244]
[1758591045223,0.24258387,4197.6,4197.5,45.114]
[1758591045820,0.24258387,4197.6,4197.5,45.85844]
[1758591046021,3.2078,4198.5,4198.4,1.15835]
[1758591046225,3.5365,4198.5,4198.4,2.72189395]
[1758591047423,0.3287,4198.5,4198.4,2.72189395]
[1758591048324,0.6742,4198.5,4198.4,2.72189395]
[1758591048519,0.6742,4198.5,4198.4,0.241]
[1758591048520,0.8816,4198.5,4198.4,0.241]
[1758591048726,0.8816,4198.5,4198.3,0.42835]
[1758591048925,0.5529,4198.5,4198.4,0.241]
[1758591049527,0.8816,4198.5,4198.4,0.241]
[1758591050027,0.8816,4198.5,4198.4,0.4513]
[1758591050229,0.8816,4198.5,4198.4,2.29354395]
[1758591050727,0.7583,4198.4,4198.3,0.63865]
[1758591051030,0.7583,4198.4,4198.3,1.08335]
[1758591052833,0.7583,4198.4,4198.3,0.87965]
[1758591054230,0.7583,4198.4,4198.3,0.42835]
[1758591054432,0.7583,4198.4,4198.3,0.87965]
[1758591058235,1.65580764,4198.4,4198.3,0.87965]
[1758591058730,0.2074,4198.2,4198.1,0.42838]
[1758591058935,4.86360764,4198.2,4198.1,0.66938]
[1758591059231,4.86360764,4198.2,4198.1,0.42838]
[1758591059432,0.5529,4198.0,4197.5,40.8]
[1758591059734,0.7583,4197.7,4197.6,0.4513]
[1758591059926,0.99783282,4197.7,4197.6,0.4513]
[1758591060126,0.99783282,4197.7,4197.6,1.08343]
[1758591060331,0.99783282,4197.7,4197.6,1.39943]
[1758591063936,0.56823282,4197.7,4197.6,1.39943]
[1758591064239,0.23953282,4197.7,4197.6,1.39943]
[1758591067441,0.55653282,4197.7,4197.6,1.39943]
[1758591067740,0.55653282,4197.7,4197.6,0.84243]
[1758591067741,0.98213282,4197.7,4197.6,0.84243]
[1758591067938,0.98213282,4197.7,4197.6,0.66943]
[1758591068434,0.98213282,4197.7,4197.6,0.88293]
[1758591069736,0.98213282,4197.7,4197.6,0.64193]
[1758591069936,0.5497,4197.5,4197.4,0.42844]
[1758591070236,1.10623282,4197.5,4197.4,0.66944]
[1758591070436,1.10623282,4197.5,4197.4,41.46944]
[1758591070636,1.10623282,4197.5,4197.4,43.09438395]
[1758591071141,0.23953282,4197.5,4197.4,43.09438395]
[1758591071443,0.7426,4197.9,4197.8,0.2135]
[1758591071747,1.64245358,4197.9,4197.8,0.241]
[1758591072643,1.64243975,4197.9,4197.8,0.241]
[1758591073045,0.4256,4197.6,4197.5,0.42844]
[1758591073346,0.7426,4197.4,4197.3,0.64195]
[1758591073543,0.98420388,4197.4,4197.3,1.08465]
[1758591074043,0.98420388,4197.4,4197.3,1.38705]
[1758591074939,0.98420388,4197.4,4197.3,1.08465]
[1758591076144,0.98420388,4197.4,4197.3,1.38705]
[1758591076347,0.98420388,4197.4,4197.3,0.44485]
[1758591076742,0.98414878,4197.4,4197.3,0.44485]
[1758591077446,0.98414878,4197.4,4197.3,0.8733]
[1758591078351,0.24154878,4197.4,4197.3,5.18605]
[1758591078743,0.24154878,4197.4,4197.3,4.9478]
[1758591080449,0.77824878,4197.4,4197.3,0.6323]
[1758591080647,0.77824878,4197.4,4197.3,0.8733]
[1758591081152,0.77824878,4197.4,4197.3,0.78865]
[1758591081153,0.99504878,4197.4,4197.3,0.78865]
[1758591081847,0.99504878,4197.4,4197.3,0.90785]
[1758591082157,0.57134878,4197.4,4197.3,0.98235]
[1758591083055,0.24154878,4197.4,4197.3,0.98235]
[1758591084855,0.1241,4198.0,4197.9,0.4284]
[1758591085057,0.66,4198.5,4198.4,0.66675]
[1758591085358,0.66,4198.5,4198.4,2.23029395]
[1758591085556,0.66,4198.5,4198.4,43.03029395]
[1758591085752,0.4531,4198.5,4198.4,43.10479395]
[1758591086357,0.132,4199.0,4198.9,0.4283]
[1758591086556,0.132,4199.0,4198.9,2.30474395]
[1758591087055,0.4618,4199.0,4198.9,2.30474395]
[1758591087556,0.4618,4199.0,4198.9,1.87004395]
[1758591087557,0.8855,4199.0,4198.9,1.87004395]
[1758591087756,0.8855,4199.0,4198.5,0.0745]
[1758591087757,0.7535,4198.9,4198.8,0.5475]
[1758591087951,0.7535,4198.9,4198.8,0.7885]
[1758591088151,0.7535,4198.9,4198.8,0.9077]
[1758591090261,0.7535,4198.9,4198.8,0.7885]
[1758591091156,1.1818,4198.9,4198.6,1.32254395]
[1758591091364,0.7426,4198.7,4198.6,1.75087395]
[1758591091557,0.7426,4198.7,4198.6,0.42833]
[1758591091760,0.7426,4198.3,4198.2,0.42836]
[1758591091959,0.7426,4198.3,4198.2,0.66936]
[1758591092161,0.7426,4198.3,4198.2,41.46936]
[1758591092559,0.7426,4198.3,4198.2,42.61250369]
[1758591092758,0.7426,4198.3,4198.2,41.94314369]
[1758591092961,0.866,4198.0,4197.9,1.14314369]
[1758591093154,0.866,4198.0,4197.9,1.38414369]
[1758591093356,0.866,4198.0,4197.9,42.18414369]
[1758591093764,0.7426,4197.9,4197.8,0.42841]
[1758591093961,0.7426,4197.9,4197.8,0.66941]
[1758591096965,0.97683676,4197.9,4197.8,0.66941]
[1758591097163,0.7426,4197.9,4197.8,0.66941]
[1758591097367,0.97683676,4197.9,4197.8,0.78831]
[1758591098562,0.97683676,4197.9,4197.8,1.93145369]
[1758591098770,0.97683676,4197.9,4197.8,1.81255369]
[1758591099067,0.97683676,4197.9,4197.8,1.93145369]
[1758591099767,0.97683676,4197.9,4197.8,2.05035369]
[1758591100272,0.97683676,4197.9,4197.8,1.81255369]
[1758591103567,4.18463676,4197.9,4197.8,1.38414369]
[1758591103972,4.18463676,4197.9,4197.8,42.18414369]
[1758591104471,4.18463676,4197.9,4197.8,1.38414369]
[1758591105274,4.18463676,4197.9,4197.8,0.241]
[1758591112173,0.4108,4197.3,4196.8,4.27907]
[1758591112476,0.1234,4197.5,4196.8,3.87411]
[1758591112477,0.7426,4196.9,4196.8,3.87411]
[1758591112676,0.97683676,4196.9,4196.8,4.11511]
[1758591113370,0.97683676,4196.9,4196.8,44.91511]
[1758591113579,0.97683676,4196.9,4196.8,46.05825369]
[1758591115974,0.76753676,4196.9,4196.8,46.13255369]
[1758591117275,0.56603676,4196.9,4196.8,46.13255369]
[1758591118573,0.56603676,4196.9,4196.8,46.05825369]
[1758591119575,0.56603676,4196.9,4196.8,46.13255369]
[1758591119975,0.3318,4196.9,4196.8,46.13255369]
[1758591120571,0.58911785,4196.9,4196.8,46.13255369]
[1758591120973,0.79191785,4196.9,4196.8,5.25825369]
[1758591121176,1.00611785,4196.9,4196.8,5.01725369]
[1758591121483,1.3328488,4196.9,4196.8,0.241]
[1758591121971,0.42851,4196.8,4196.5,0.42853]
[1758591122174,0.7385,4196.6,4196.5,0.42853]
[1758591122374,0.99581785,4196.6,4196.5,0.78883]
[1758591123673,0.3339,4196.5,4196.4,1.57169369]
[1758591123979,1.12691785,4196.5,4196.4,1.81269369]
[1758591124776,1.12691785,4196.5,4196.1,1.14314369]
[1758591124981,0.7385,4195.8,4195.7,3.63642]
[1758591125176,0.99581785,4195.8,4195.7,0.42862]
[1758591125381,0.99581785,4195.8,4195.7,0.66962]
[1758591125879,0.99581785,4195.8,4195.2,3.75577]
[1758591125880,0.7385,4195.3,4195.2,3.75577]
[1758591126078,0.99581785,4195.3,4195.2,4.11607]
[1758591126574,0.99581785,4195.3,4195.2,3.87507]
[1758591126774,0.99581785,4195.3,4195.2,4.11607]
[1758591127385,0.99581785,4195.3,4195.2,0.66967]
[1758591138192,0.99581785,4195.3,4195.2,0.241]
[1758591138389,1.10298785,4195.3,4195.1,0.42868]
[1758591138593,0.8675,4195.0,4194.9,0.4287]
[1758591138891,1.12481785,4195.0,4194.9,0.4287]
[1758591139488,0.7368,4194.9,4194.8,0.42871]
[1758591139693,0.99411785,4194.9,4194.8,0.42871]
[1758591139894,1.82666154,4194.9,4194.6,0.241]
[1758591140094,0.7368,4194.7,4194.6,0.66974]
[1758591140296,0.99411785,4194.7,4194.6,0.66974]
[1758591141291,0.8675,4194.5,4194.4,0.42876]
[1758591141596,1.12481785,4194.5,4194.4,0.42876]
[1758591141791,0.3451,4194.0,4193.9,41.22881]
[1758591141991,0.3106,4193.9,4193.8,0.42881]
[1758591142196,0.99411785,4193.9,4193.8,0.42881]
[1758591148197,1.65957152,4193.9,4193.8,0.42881]
[1758591149190,1.65957152,4193.9,4193.5,4.35094369]
[1758591149494,0.7368,4193.2,4193.1,0.54839]
[1758591149700,0.99411785,4193.2,4193.1,2.05203369]
[1758591149891,0.99411785,4193.2,4193.1,0.90889]
[1758591150087,1.4025137,4193.2,4193.0,4.35094369]
[1758591150293,0.8675,4193.0,4192.9,0.69375013]
[1758591150499,1.12875698,4193.0,4192.9,0.69375013]
[1758591151389,1.79457696,4193.0,4192.9,0.69375013]
[1758591154095,1.79457696,4193.0,4192.9,0.45275013]
[1758591156999,1.79457696,4193.0,4192.7,0.241]
[1758591157000,1.48397696,4193.0,4192.7,0.42893]
[1758591157191,3.9615,4192.8,4192.7,0.42893]
[1758591157503,4.88857696,4192.8,4192.7,0.42893]
[1758591158398,4.88775401,4192.8,4192.7,0.42893]
[1758591160093,4.88602314,4192.8,4192.7,0.42893]
[1758591171210,4.88602314,4192.8,4192.7,0.54883]
[1758591171717,1.67822314,4192.8,4192.7,0.54883]
[1758591172915,1.67822314,4192.8,4192.7,0.42893]
[1758591174010,4.88602314,4192.8,4192.7,0.42893]
[1758591179819,0.4193,4192.3,4192.2,0.42898]
[1758591180018,1.01413403,4192.3,4192.2,0.42898]
[1758591180214,1.67822314,4192.3,4192.2,0.42898]
[1758591180420,0.7533,4192.1,4192.0,0.429]
[1758591180718,1.67782314,4192.1,4192.0,0.429]
[1758591181721,1.67782314,4192.1,4192.0,1.7553394]
[1758591182518,1.67782314,4192.1,4192.0,1.9955394]
[1758591183212,1.67782314,4192.1,4192.0,0.429]
[1758591183622,0.8841,4192.0,4191.9,0.67001]
[1758591183822,1.80862314,4192.0,4191.9,0.67001]
[1758591184121,1.80862314,4192.0,4191.0,3.2078]
[1758591184122,0.7533,4191.4,4191.3,1.3263394]
[1758591184320,1.67782314,4191.4,4191.3,0.241]
[1758591184515,1.67782314,4191.4,4191.3,41.041]
[1758591184920,1.47282314,4191.4,4191.3,42.8715094]
[1758591185120,1.24972314,4191.4,4191.3,42.8715094]
[1758591185322,0.58563403,4191.4,4191.3,42.8715094]
[1758591185922,0.58443467,4191.4,4191.3,42.7964094]
[1758591186118,0.25923467,4191.4,4191.3,6.3100994]
[1758591186324,0.58443467,4191.4,4191.3,6.5502994]
[1758591186824,0.58443467,4191.4,4191.3,6.3117094]
[1758591187019,0.25923467,4191.4,4191.3,6.3117094]
[1758591187226,0.58443467,4191.4,4191.3,6.3117094]
[1758591187824,0.58443467,4191.4,4191.3,6.2366094]
[1758591188124,0.58443467,4191.4,4191.3,6.3117094]
[1758591188511,0.80753467,4191.4,4191.3,6.2366094]
[1758591188725,0.80753467,4191.4,4191.3,2.2366094]
[1758591189426,0.58443467,4191.4,4191.3,2.3117094]
[1758591189927,0.58443467,4191.4,4191.3,43.1117094]
[1758591191220,0.58443467,4191.4,4191.3,43.0366094]
[1758591191424,0.58443467,4191.4,4191.3,41.46927]
[1758591191629,0.58443467,4191.4,4191.3,41.59017]
[1758591192220,0.58443467,4191.4,4191.0,4.5341394]
[1758591192221,1.01253467,4191.4,4191.0,3.2078]
[1758591192419,0.6791,4189.0,4188.9,2.49631546]
[1758591192620,0.25923467,4189.0,4188.9,3.14723546]
[1758591192822,0.25923467,4189.0,4188.9,43.94723546]
[1758591193128,0.25923467,4189.0,4188.9,45.27357486]
[1758591193429,1.14333467,4189.0,4188.9,0.444]
[1758591193931,1.57264467,4189.0,4188.9,0.2216]
[1758591194127,1.57264467,4189.0,4188.6,0.242]
[1758591194330,0.7533,4188.7,4188.6,0.4636]
[1758591194528,1.01253467,4188.7,4188.6,0.4636]
[1758591194724,0.68733467,4188.7,4188.3,3.2078]
[1758591195030,0.5483,4187.9,4187.8,0.7709]
[1758591195229,0.80753467,4187.9,4187.8,1.0129]
[1758591196430,0.5483,4187.9,4187.8,1.0129]
[1758591197229,0.2148,4188.2,4188.1,0.4294]
[1758591197528,0.5223,4188.2,4188.1,2.7513394]
[1758591197732,0.77827559,4188.2,4188.1,2.7513394]
[1758591198031,0.98337559,4188.2,4188.1,0.9956]
[1758591198232,0.98337559,4188.2,4188.1,41.7956]
[1758591198421,0.98337559,4188.2,4188.1,41.4776]
[1758591198624,0.98337559,4188.2,4188.1,41.907]
[1758591198925,0.98337559,4188.2,4188.1,42.225]
[1758591199121,0.98337559,4188.2,4188.1,1.425]
[1758591199735,0.98337559,4188.2,4188.1,0.9956]
[1758591200829,0.7274,4187.9,4187.4,0.318]
[1758591201033,0.55532,4188.0,4187.4,0.318]
[1758591201034,0.1259,4188.0,4187.4,2.0799394]
[1758591201235,0.5223,4187.9,4187.8,0.7536]
[1758591201437,0.7274,4187.9,4187.8,0.7536]
[1758591201737,0.7274,4187.9,4187.8,0.4356]
[1758591202336,0.98276505,4187.9,4187.8,0.4356]
[1758591203141,0.98276505,4187.9,4187.2,3.5258]
[1758591203142,0.42946,4187.6,4187.2,3.5258]
[1758591203341,0.7274,4187.3,4187.2,5.5297394]
[1758591203638,0.7274,4187.3,4187.2,2.0039394]
[1758591203847,0.7274,4187.3,4187.2,0.2186]
[1758591203848,0.7775493,4187.3,4187.2,0.2186]
[1758591204147,0.7775493,4187.3,4187.2,0.7536]
[1758591205642,0.9826493,4187.3,4187.2,0.7536]
[1758591205846,0.9826493,4187.3,4187.2,0.9966]
[1758591206046,0.2552493,4187.3,4187.2,4.2044]
[1758591206648,0.8533,4188.0,4187.9,0.217]
[1758591206840,1.1084096,4188.0,4187.9,0.217]
[1758591207235,0.3075,4188.7,4187.9,4.6786]
[1758591207549,0.3075,4189.0,4188.9,1.18292]
[1758591207844,0.5223,4189.0,4188.9,0.7536]
[1758591208034,0.8533,4189.0,4188.9,0.7536]
[1758591208241,0.8533,4189.0,4188.9,0.4356]
[1758591208439,0.8533,4189.0,4188.9,0.86492]
[1758591210245,0.8533,4189.0,4188.9,1.18292]
[1758591211842,0.8533,4189.0,4188.5,0.1118]
[1758591211843,0.4301,4188.6,4188.5,0.67236]
[1758591212051,0.7619,4188.4,4188.3,0.67238]
[1758591212452,0.4301,4188.1,4188.0,41.47241]
[1758591212650,0.7619,4188.1,4188.0,41.47241]
[1758591212854,0.7619,4188.1,4188.0,0.67241]
[1758591213151,0.7619,4188.1,4188.0,1.10311]
[1758591213449,0.7619,4188.1,4188.0,1.42221]
[1758591213641,0.3466,4187.5,4187.1,0.4295]
[1758591213838,0.889,4187.0,4186.9,3.85762]
[1758591214046,0.889,4187.0,4186.9,4.10062]
[1758591214247,0.889,4187.0,4186.9,44.90062]
[1758591215553,0.889,4187.0,4186.9,45.21972]
[1758591216145,0.7619,4187.0,4186.9,45.21972]
[1758591216355,1.21267316,4187.0,4186.9,45.21972]
[1758591216851,1.21267316,4187.0,4186.9,4.63012]
[1758591217051,0.88087316,4187.0,4186.9,4.63012]
[1758591217547,1.21267316,4187.0,4186.9,4.63012]
[1758591217748,0.67027316,4187.0,4186.9,8.63012]
[1758591218046,0.3318,4187.8,4187.7,0.42944]
[1758591218355,1.43251596,4187.8,4187.7,0.64974]
[1758591218955,1.43251596,4187.8,4187.4,0.89276]
[1758591218956,0.889,4187.5,4187.4,0.89276]
[1758591219255,1.81536638,4187.5,4187.4,0.89276]
[1758591220356,1.81536638,4187.5,4187.4,0.243]
[1758591221257,1.81536638,4187.5,4187.4,0.4633]
[1758591222650,1.81487714,4187.5,4187.4,0.4633]
[1758591222952,1.81487714,4187.5,4187.3,0.42948]
[1758591223156,1.81487714,4187.5,4187.3,0.89278]
[1758591223157,1.68777714,4187.4,4187.3,0.89278]
[1758591223353,1.68777714,4187.4,4187.3,1.10318]
[1758591223745,1.68777714,4187.4,4187.3,41.90318]
[1758591224149,1.68777714,4187.4,4187.3,42.22228]
[1758591225651,1.46827714,4187.4,4187.3,42.22228]
[1758591225850,0.92587714,4187.4,4187.3,42.22228]
[1758591226664,0.90987899,4187.4,4187.3,42.22228]
[1758591226853,1.24167899,4187.4,4187.3,42.22228]
[1758591227349,0.90987899,4187.4,4187.3,42.22228]
[1758591228262,0.90987899,4187.4,4187.3,1.42228]
[1758591228859,0.90987899,4187.4,4187.3,42.22228]
[1758591230662,0.90987899,4187.4,4187.3,43.37112433]
[1758591230857,0.90995586,4187.4,4187.3,43.37112433]
[1758591232059,0.3318,4188.2,4188.1,0.4294]
[1758591232264,0.5424,4188.2,4188.1,2.65904433]
[1758591232760,0.7619,4188.2,4188.1,2.65904433]
[1758591237765,1.19129,4188.2,4188.1,0.331]
[1758591238366,5.19129,4188.2,4188.1,0.331]
[1758591239162,5.19129,4188.2,4188.1,0.7604]
[1758591239467,5.19129,4188.2,4188.1,0.331]
[1758591239967,5.19129,4188.2,4188.1,0.089]
[1758591242071,1.07351,4188.1,4187.0,0.42951]
[1758591242362,0.7418,4187.2,4187.1,2.03734433]
[1758591242570,0.7418,4187.2,4187.1,2.24534433]
[1758591242871,0.7418,4187.2,4187.1,2.57574433]
[1758591243560,0.1274,4188.0,4187.9,0.208]
[1758591243764,0.6635,4188.0,4187.9,1.90424433]
[1758591243964,1.52902136,4188.0,4187.9,1.90424433]
[1758591244169,1.76285044,4188.0,4187.9,1.57384433]
[1758591245667,1.76285044,4188.0,4187.9,1.14884433]